bitfinex-derivatives/quotes_SOLF0:USTF0_20250505
["timestamp","ask_amount","ask_price","bid_price","bid_amount"]
[1746458181230,25.0,144.14,144.02,18.80512095]
[1746458181524,6.9392,144.12,144.09,6.9401]
[1746458181823,25.0,144.14,144.06,25.0]
[1746458182122,25.0,144.14,144.07,2.0331]
[1746458182429,6.939,144.12,144.09,6.9402]
[1746458182634,25.0,144.14,144.07,2.0331]
[1746458182836,25.0,144.14,144.07,6.247]
[1746458183031,6.9388,144.13,144.11,6.9394]
[1746458183640,6.9388,144.13,144.1,6.9398]
[1746458184739,6.9393,144.12,144.09,6.9403]
[1746458185437,6.9393,144.12,144.1,6.9399]
[1746458185841,6.9393,144.12,144.09,6.9403]
[1746458187041,6.9393,144.12,144.1,6.9399]
[1746458187233,6.9387,144.13,144.1,6.9399]
[1746458187633,25.0,144.14,144.07,6.247]
[1746458187835,26.40725116,144.17,144.07,6.247]
[1746458188138,26.40725116,144.17,144.12,6.9385]
[1746458188334,26.40725116,144.17,144.07,6.247]
[1746458188743,26.40725116,144.17,144.14,6.938]
[1746458189041,6.9373,144.16,144.1,25.02]
[1746458189341,6.9373,144.16,144.13,6.9383]
[1746458189643,6.9376,144.15,144.1,25.02]
[1746458190237,6.9373,144.16,144.13,6.9382]
[1746458190443,26.40725116,144.17,144.1,25.02]
[1746458190837,6.9378,144.15,144.12,6.9387]
[1746458192145,6.9378,144.15,144.13,6.9384]
[1746458192442,6.9378,144.15,144.1,25.02]
[1746458192743,6.9378,144.15,144.12,6.9387]
[1746458192942,6.9378,144.15,144.1,25.02]
[1746458193346,6.9378,144.15,144.12,6.9386]
[1746458194446,6.9378,144.15,144.13,6.9384]
[1746458195346,6.9372,144.16,144.13,6.9384]
[1746458196045,26.40725116,144.17,144.12,6.9388]
[1746458196850,6.9383,144.14,144.11,6.9392]
[1746458197146,38.16049087,144.17,144.07,31.267]
[1746458197542,6.9395,144.11,144.09,6.9401]
[1746458198043,6.9402,144.1,144.07,31.267]
[1746458198347,25.02,144.13,144.07,31.267]
[1746458198649,6.9404,144.1,144.07,38.2081]
[1746458198946,25.02,144.13,144.07,36.043]
[1746458199337,25.02,144.13,144.04,45.01]
[1746458199541,11.75323971,144.11,144.04,45.01]
[1746458199738,11.75323971,144.11,144.04,19.99]
[1746458199943,6.9418,144.07,144.04,26.9328]
[1746458200247,6.9418,144.07,144.04,19.99]
[1746458200450,25.02,144.09,144.04,19.99]
[1746458200846,6.9415,144.07,144.04,19.99]
[1746458201149,25.02,144.09,144.04,19.99]
[1746458201551,25.02,144.09,144.07,6.9411]
[1746458201852,25.1,144.12,144.05,25.1]
[1746458202048,6.9396,144.11,144.05,25.1]
[1746458202749,32.039,144.12,144.05,25.1]
[1746458203052,25.1,144.12,144.11,6.9394]
[1746458203446,25.1,144.12,144.05,25.1]
[1746458203645,6.9387,144.13,144.1,6.9397]
[1746458204454,6.9382,144.14,144.05,25.1]
[1746458205152,6.9382,144.14,144.11,6.9391]
[1746458205553,6.9382,144.14,144.05,25.1]
[1746458206454,6.9382,144.14,144.11,6.9391]
[1746458206653,6.9386,144.13,144.05,25.1]
[1746458206950,25.1,144.15,144.11,6.939]
[1746458207353,6.9382,144.14,144.11,6.939]
[1746458207654,6.9382,144.14,144.12,6.9388]
[1746458208350,25.1,144.15,144.13,6.9385]
[1746458208753,25.1,144.15,144.09,25.1]
[1746458208954,32.038,144.15,144.1,4.1744]
[1746458209255,25.1,144.15,144.1,4.1744]
[1746458209452,6.9373,144.16,144.1,6.1863]
[1746458209654,1.38725116,144.17,144.1,6.1863]
[1746458209956,6.9379,144.15,144.1,6.1863]
[1746458210557,6.9379,144.15,144.11,6.939]
[1746458210854,6.9381,144.14,144.11,6.939]
[1746458211659,6.9381,144.14,144.12,6.9389]
[1746458211857,6.9377,144.15,144.12,6.9389]
[1746458212257,8.32415116,144.17,144.1,6.1863]
[1746458212456,1.38725116,144.17,144.1,6.1863]
[1746458213458,8.32415116,144.17,144.14,6.9376]
[1746458214555,6.9371,144.16,144.14,6.9376]
[1746458215259,8.32405116,144.17,144.14,6.9376]
[1746458215462,1.38725116,144.17,144.15,6.9374]
[1746458216259,1.38725116,144.17,144.16,6.937]
[1746458217061,8.32385116,144.17,144.14,6.9379]
[1746458217361,1.38725116,144.17,144.14,6.9379]
[1746458217963,1.38725116,144.17,144.13,32.0382]
[1746458218465,1.38725116,144.17,144.13,25.1]
[1746458218766,6.9373,144.16,144.13,32.0382]
[1746458220160,8.32405116,144.17,144.14,6.938]
[1746458220365,1.38725116,144.17,144.13,25.1]
[1746458221767,1.38725116,144.17,144.15,6.9373]
[1746458221960,1.38725116,144.17,144.13,25.1]
[1746458222366,1.38725116,144.17,144.16,6.937]
[1746458222966,1.38725116,144.17,144.15,6.9373]
[1746458223162,8.32405116,144.17,144.15,6.9373]
[1746458223467,1.38725116,144.17,144.13,25.1]
[1746458223770,1.38725116,144.17,144.14,6.9379]
[1746458223963,1.38725116,144.17,144.13,25.1]
[1746458224161,26.46725116,144.17,144.12,6.9387]
[1746458224767,6.9382,144.14,144.12,6.9387]
[1746458224966,26.46725116,144.17,144.12,6.9387]
[1746458225168,26.46725116,144.17,144.13,6.9384]
[1746458225368,6.9373,144.16,144.1,31.2663]
[1746458225763,33.40395116,144.17,144.1,31.2663]
[1746458226671,6.937,144.16,144.1,31.2663]
[1746458226871,26.46725116,144.17,144.1,31.2663]
[1746458227263,6.9382,144.14,144.1,31.2663]
[1746458227467,6.9382,144.14,144.1,29.2544]
[1746458227668,6.9382,144.14,144.12,6.9387]
[1746458228166,6.9378,144.15,144.12,6.9387]
[1746458228473,26.46725116,144.17,144.13,6.9384]
[1746458228765,26.46725116,144.17,144.1,29.2544]
[1746458228971,26.46725116,144.17,144.11,2.0054]
[1746458229375,26.46725116,144.17,144.15,6.9373]
[1746458229671,26.46725116,144.17,144.11,2.0054]
[1746458229874,26.46725116,144.17,144.14,6.9377]
[1746458230170,26.46725116,144.17,144.11,2.0054]
[1746458230372,26.46725116,144.17,144.15,6.9375]
[1746458231168,1.38725116,144.17,144.16,6.937]
[1746458232173,1.38725116,144.17,144.15,6.9373]
[1746458233274,1.38725116,144.17,144.16,6.937]
[1746458236069,1.38725116,144.17,144.11,2.0054]
[1746458236273,1.38725116,144.17,144.15,6.9373]
[1746458236571,1.38725116,144.17,144.11,2.0054]
[1746458237974,8.32385116,144.17,144.11,2.0054]
[1746458238275,8.32385116,144.17,144.15,6.9372]
[1746458238573,1.38725116,144.17,144.15,6.9372]
[1746458238873,1.38725116,144.17,144.11,2.0054]
[1746458240671,6.9373,144.16,144.14,6.938]
[1746458241377,8.32405116,144.17,144.14,6.938]
[1746458241577,8.32405116,144.17,144.15,6.9372]
[1746458241875,1.38725116,144.17,144.11,2.0054]
[1746458242079,1.38725116,144.17,144.16,6.937]
[1746458242269,24.98,144.23,144.14,24.98]
[1746458242465,24.98,144.23,144.15,2.0879]
[1746458242870,24.98,144.23,144.16,2.0925]
[1746458243070,24.98,144.23,144.21,6.9346]
[1746458243273,24.43569416,144.25,144.21,6.9346]
[1746458243775,24.43569416,144.25,144.18,24.98]
[1746458244172,24.43569416,144.25,144.24,6.9332]
[1746458244575,24.43569416,144.28,144.18,24.98]
[1746458244769,6.9322,144.26,144.18,24.98]
[1746458244976,24.43569416,144.28,144.18,24.98]
[1746458245371,6.932,144.27,144.24,6.9329]
[1746458245568,24.43569416,144.28,144.22,24.98]
[1746458245774,24.43569416,144.28,144.23,27.0754]
[1746458246478,24.43569416,144.28,144.27,6.9317]
[1746458246978,6.9307,144.3,144.26,6.932]
[1746458247281,24.98,144.32,144.24,2.0711]
[1746458247483,24.98,144.32,144.24,4.125]
[1746458247779,31.9094,144.32,144.24,4.125]
[1746458248277,45.35772453,144.35,144.24,4.125]
[1746458248581,24.98,144.34,144.24,4.125]
[1746458248974,31.9088,144.34,144.24,4.125]
[1746458249474,31.9088,144.34,144.3,6.93]
[1746458249779,6.9289,144.33,144.3,6.93]
[1746458250075,6.9289,144.33,144.29,6.9306]
[1746458250581,24.98,144.34,144.27,24.98]
[1746458251078,31.9087,144.34,144.31,6.9296]
[1746458251380,27.0128,144.37,144.31,6.9296]
[1746458251681,6.9285,144.34,144.31,6.9296]
[1746458254179,6.9289,144.33,144.3,6.9301]
[1746458254384,24.98,144.38,144.27,24.98]
[1746458255281,6.9297,144.32,144.29,6.9305]
[1746458255479,24.98,144.38,144.27,24.98]
[1746458255784,6.93,144.31,144.28,6.931]
[1746458255984,6.93,144.31,144.27,24.98]
[1746458256182,24.98,144.38,144.27,24.98]
[1746458256380,24.98,144.38,144.3,6.9302]
[1746458256583,24.98,144.38,144.27,24.98]
[1746458256881,24.98,144.38,144.3,6.9303]
[1746458257084,24.98,144.38,144.27,24.98]
[1746458257483,6.9294,144.32,144.29,6.9304]
[1746458258279,6.9291,144.33,144.3,6.9303]
[1746458258474,6.9291,144.33,144.27,24.98]
[1746458258684,6.9291,144.33,144.3,6.93]
[1746458258879,6.9285,144.34,144.27,24.98]
[1746458259079,24.98,144.38,144.27,24.98]
[1746458259484,6.9282,144.35,144.27,24.98]
[1746458259781,6.9282,144.35,144.32,6.9291]
[1746458260987,6.9282,144.35,144.33,6.9288]
[1746458262390,24.98,144.38,144.34,6.9281]
[1746458263085,6.9272,144.37,144.34,6.9281]
[1746458263390,24.98,144.38,144.35,6.9278]
[1746458263786,31.9069,144.38,144.35,6.9278]
[1746458264090,31.9069,144.38,144.35,25.7578]
[1746458264487,31.9069,144.38,144.35,18.83]
[1746458264792,6.9272,144.37,144.35,18.83]
[1746458265995,6.9274,144.36,144.35,18.83]
[1746458268087,24.98,144.38,144.35,18.83]
[1746458268487,6.9274,144.36,144.35,18.83]
[1746458269294,6.9272,144.37,144.35,18.83]
[1746458269487,1.9906,144.4,144.35,18.83]
[1746458270794,6.9272,144.37,144.35,25.7579]
[1746458271094,1.9906,144.4,144.35,18.83]
[1746458271894,6.9272,144.37,144.35,18.83]
[1746458272192,6.9272,144.37,144.35,25.7579]
[1746458273292,6.9265,144.38,144.36,6.9274]
[1746458273487,24.96,144.41,144.36,6.9274]
[1746458273995,6.9262,144.39,144.37,6.9269]
[1746458276192,24.96,144.41,144.38,6.9264]
[1746458276400,24.96,144.44,144.35,43.79]
[1746458276694,24.96,144.44,144.38,6.9262]
[1746458277198,6.9254,144.41,144.38,6.9262]
[1746458277594,24.96,144.44,144.38,6.9262]
[1746458277798,6.9253,144.41,144.38,6.9262]
[1746458277991,24.96,144.44,144.35,43.79]
[1746458278395,24.96,144.44,144.36,2.0679]
[1746458278698,6.9248,144.42,144.36,2.0679]
[1746458278899,24.96,144.44,144.36,2.0679]
[1746458279198,6.9259,144.4,144.37,6.9267]
[1746458279699,6.9259,144.4,144.35,43.79]
[1746458280300,6.9259,144.4,144.38,6.9263]
[1746458281404,24.96,144.44,144.35,43.79]
[1746458282004,6.9248,144.42,144.39,6.9256]
[1746458282402,6.9248,144.42,144.35,43.79]
[1746458282600,6.9252,144.41,144.39,6.9257]
[1746458283205,6.9248,144.42,144.4,6.9253]
[1746458283392,6.9248,144.42,144.35,43.79]
[1746458283393,24.96,144.44,144.35,55.5116661]
[1746458284003,6.9243,144.43,144.41,6.9249]
[1746458284305,24.96,144.44,144.35,55.5116661]
[1746458284504,9.04,144.45,144.42,6.9242]
[1746458284706,2.1164,144.45,144.39,24.94]
[1746458285705,6.9243,144.43,144.39,24.94]
[1746458286201,6.9243,144.43,144.4,6.9252]
[1746458286409,2.1164,144.45,144.39,24.94]
[1746458286704,2.1164,144.45,144.35,18.83]
[1746458287006,6.9253,144.41,144.36,24.94]
[1746458287608,6.9253,144.41,144.39,6.9257]
[1746458287803,6.9255,144.4,144.36,24.94]
[1746458288108,2.1164,144.45,144.36,24.94]
[1746458288405,6.9253,144.41,144.36,24.94]
[1746458288609,2.1164,144.45,144.38,6.9262]
[1746458288906,6.9252,144.41,144.36,24.94]
[1746458289208,6.9252,144.41,144.39,6.9257]
[1746458289605,6.9248,144.42,144.36,24.94]
[1746458289805,2.1164,144.45,144.38,6.9261]
[1746458290007,6.9254,144.41,144.38,6.9261]
[1746458290208,6.9254,144.41,144.36,24.94]
[1746458290408,2.1164,144.45,144.36,24.94]
[1746458290605,11.7216661,144.43,144.36,24.94]
[1746458290809,11.7216661,144.43,144.35,18.83]
[1746458291408,11.7216661,144.43,144.38,6.9262]
[1746458291608,6.9256,144.4,144.38,6.9262]
[1746458292011,11.7216661,144.43,144.35,18.83]
[1746458292309,24.94,144.44,144.35,18.83]
[1746458292510,24.94,144.44,144.41,6.9248]
[1746458292711,31.8638,144.44,144.38,24.94]
[1746458293008,24.43569416,144.46,144.38,24.94]
[1746458293203,31.35869416,144.46,144.39,3.9781]
[1746458293403,31.35869416,144.46,144.39,5.9998]
[1746458293710,6.9234,144.45,144.39,5.9998]
[1746458294412,31.35859416,144.46,144.39,5.9998]
[1746458294605,6.9229,144.46,144.39,5.9998]
[1746458294805,24.94,144.47,144.43,6.924]
[1746458295006,6.9229,144.46,144.39,5.9998]
[1746458295413,6.9229,144.46,144.43,6.9236]
[1746458296015,6.9231,144.45,144.43,6.9236]
[1746458296211,24.94,144.47,144.43,6.9236]
[1746458296813,6.9229,144.46,144.44,6.9235]
[1746458297210,24.94,144.47,144.39,5.9998]
[1746458297412,6.9218,144.48,144.4,24.94]
[1746458297707,6.9218,144.48,144.46,6.9224]
[1746458297914,27.0459,144.5,144.46,6.9224]
[1746458298417,27.0459,144.5,144.4,24.94]
[1746458298418,6.9219,144.48,144.45,6.9228]
[1746458299214,27.0459,144.5,144.45,6.9228]
[1746458299714,6.9221,144.48,144.45,6.9228]
[1746458299920,27.0459,144.5,144.44,6.9233]
[1746458300215,6.9224,144.47,144.4,24.94]
[1746458300519,6.9224,144.47,144.44,6.9232]
[1746458301719,27.0459,144.5,144.43,6.9238]
[1746458302216,6.9231,144.45,144.43,6.9238]
[1746458303515,6.9239,144.44,144.4,24.94]
[1746458303819,6.9239,144.44,144.4,24.92]
[1746458304020,6.9239,144.44,144.41,6.9247]
[1746458304520,6.9241,144.43,144.4,24.92]
[1746458304721,6.9241,144.43,144.4,31.8453]
[1746458305418,24.92,144.46,144.39,3.9781]
[1746458305622,24.92,144.46,144.41,1.0]
[1746458305925,6.9245,144.42,144.41,1.0]
[1746458308022,31.8445,144.42,144.41,1.0]
[1746458309619,26.9884,144.45,144.41,1.0]
[1746458310123,6.9245,144.42,144.41,1.0]
[1746458314432,6.9243,144.43,144.41,1.0]
[1746458314830,6.9243,144.43,144.41,7.9249]
[1746458315031,6.9238,144.44,144.41,1.0]
[1746458315925,6.9238,144.44,144.42,6.9243]
[1746458316831,6.9238,144.44,144.41,7.9248]
[1746458317032,6.9241,144.43,144.41,7.9248]
[1746458317229,6.9241,144.43,144.41,1.0]
[1746458317529,24.92,144.45,144.41,1.0]
[1746458317727,6.9245,144.42,144.41,1.0]
[1746458318833,6.9243,144.43,144.41,7.9249]
[1746458319032,24.92,144.45,144.41,1.0]
[1746458319936,31.8434,144.45,144.42,6.9242]
[1746458320434,6.9236,144.44,144.42,6.9242]
[1746458321336,6.9236,144.44,144.41,7.9249]
[1746458321633,6.9241,144.43,144.41,1.0]
[1746458322133,6.9245,144.42,144.41,1.0]
[1746458327025,6.9243,144.43,144.41,1.0]
[1746458327426,6.9245,144.42,144.41,1.0]
[1746458329434,6.9242,144.43,144.41,1.0]
[1746458329733,24.92,144.45,144.41,1.0]
[1746458331239,6.9245,144.43,144.41,1.0]
[1746458331435,24.92,144.45,144.41,1.0]
[1746458331940,6.9229,144.46,144.43,6.924]
[1746458332142,24.92,144.48,144.41,1.0]
[1746458332440,6.9224,144.47,144.44,6.9233]
[1746458334544,31.8419,144.48,144.45,6.9231]
[1746458335144,6.9213,144.49,144.46,6.9225]
[1746458335345,24.92,144.51,144.42,24.92]
[1746458335545,24.92,144.51,144.45,6.9227]
[1746458335740,6.9216,144.49,144.42,24.92]
[1746458336245,6.9216,144.49,144.46,6.9223]
[1746458337246,6.9218,144.48,144.45,6.923]
[1746458337948,6.9224,144.47,144.44,6.9233]
[1746458338450,6.9228,144.46,144.44,6.9233]
[1746458338654,24.92,144.47,144.41,1.0]
[1746458338948,6.9235,144.45,144.41,1.0]
[1746458339148,24.92,144.47,144.41,1.0]
[1746458339541,6.9244,144.43,144.41,1.0]
[1746458339741,24.92,144.47,144.41,7.9249]
[1746458340849,24.92,144.47,144.41,1.0]
[1746458341045,6.9243,144.43,144.41,1.0]
[1746458341448,6.9243,144.43,144.41,7.925]
[1746458341650,6.9243,144.43,144.41,1.0]
[1746458341846,6.9245,144.42,144.41,1.0]
[1746458345952,31.8443,144.43,144.41,1.0]
[1746458346149,24.92,144.46,144.41,1.0]
[1746458346353,24.52270873,144.48,144.41,25.92]
[1746458346654,31.44470873,144.48,144.45,6.9228]
[1746458346852,31.44470873,144.48,144.41,27.9969]
[1746458347048,24.52270873,144.48,144.46,6.9223]
[1746458347252,56.36400873,144.49,144.41,29.9748]
[1746458347653,49.44270873,144.49,144.41,29.9748]
[1746458348850,6.9222,144.47,144.41,29.9748]
[1746458349055,6.9222,144.47,144.45,6.9229]
[1746458349756,6.9219,144.48,144.45,6.9229]
[1746458350454,56.36410873,144.49,144.41,29.9748]
[1746458350655,49.44270873,144.49,144.41,29.9748]
[1746458350855,24.92,144.49,144.41,29.9748]
[1746458351355,31.8412,144.49,144.47,6.9219]
[1746458351854,24.92,144.49,144.41,29.9748]
[1746458353254,24.92,144.49,144.47,6.9219]
[1746458353458,24.92,144.49,144.41,29.9748]
[1746458353658,24.92,144.52,144.41,29.9748]
[1746458354650,6.9213,144.49,144.46,6.9226]
[1746458354851,24.92,144.52,144.41,29.9748]
[1746458355158,6.9235,144.45,144.42,6.9244]
[1746458355357,24.92,144.48,144.42,6.9244]
[1746458355559,24.92,144.48,144.41,25.92]
[1746458355756,6.9238,144.44,144.41,32.8446]
[1746458356258,6.9238,144.44,144.41,25.92]
[1746458357559,6.9238,144.44,144.41,1.0]
[1746458358254,6.9241,144.43,144.41,1.0]
[1746458358649,6.9245,144.42,144.41,1.0]
[1746458360155,6.9243,144.43,144.41,1.0]
[1746458360356,24.9,144.44,144.41,1.0]
[1746458361161,31.8238,144.44,144.41,1.0]
[1746458361662,31.8238,144.44,144.41,7.9246]
[1746458362563,31.8238,144.44,144.42,6.9244]
[1746458362765,31.8238,144.44,144.41,1.0]
[1746458363064,31.8238,144.44,144.41,7.9247]
[1746458363564,31.8238,144.44,144.42,6.9245]
[1746458363763,31.8238,144.44,144.41,1.0]
[1746458364057,24.9,144.47,144.45,6.9231]
[1746458364456,24.9,144.47,144.41,5.2373]
[1746458364656,31.8225,144.47,144.44,6.9234]
[1746458364861,24.9,144.47,144.41,5.2373]
[1746458365061,6.9237,144.44,144.41,7.9246]
[1746458365765,6.9241,144.43,144.41,7.9246]
[1746458366067,6.9241,144.43,144.41,1.0]
[1746458366261,6.9245,144.42,144.41,1.0]
[1746458366960,24.9,144.43,144.41,1.0]
[1746458367659,6.9238,144.44,144.41,7.9247]
[1746458368062,6.9242,144.43,144.41,7.9247]
[1746458368558,6.9242,144.43,144.41,2.0]
[1746458369965,6.9242,144.43,144.41,8.925]
[1746458370369,6.9242,144.43,144.41,2.0]
[1746458370571,26.8646,144.46,144.41,2.0]
[1746458371066,6.9245,144.42,144.41,2.0]
[1746458382478,31.8241,144.43,144.41,8.925]
[1746458382674,26.8646,144.46,144.41,2.0]
[1746458382883,24.9,144.46,144.41,2.0]
[1746458383476,24.9,144.46,144.42,6.9242]
[1746458383979,6.9235,144.45,144.42,6.9242]
[1746458384581,24.9,144.46,144.41,2.0]
[1746458384780,26.8489,144.49,144.41,26.9]
[1746458384983,6.922,144.48,144.45,6.923]
[1746458385279,26.8489,144.49,144.41,26.9]
[1746458385672,6.9225,144.47,144.41,26.9]
[1746458386385,6.9227,144.46,144.41,26.9]
[1746458386882,6.9227,144.46,144.43,6.9238]
[1746458387584,6.9232,144.45,144.43,6.9238]
[1746458387780,26.8489,144.49,144.43,6.9238]
[1746458388583,6.9229,144.46,144.43,6.9238]
[1746458389287,6.9231,144.45,144.43,6.9238]
[1746458389886,6.9229,144.46,144.43,6.9238]
[1746458390892,6.9229,144.46,144.41,26.9]
[1746458390893,6.9224,144.47,144.41,26.9]
[1746458391181,24.9,144.49,144.42,1.9686]
[1746458391388,24.9,144.49,144.42,13.68017529]
[1746458391389,31.8213,144.49,144.42,13.68017529]
[1746458391590,6.9213,144.49,144.43,4.1209]
[1746458391789,6.9213,144.49,144.46,6.9223]
[1746458392088,6.9217,144.48,144.46,6.9223]
[1746458392287,24.88,144.52,144.44,6.9233]
[1746458392488,6.9225,144.47,144.43,4.1209]
[1746458392788,6.9225,144.47,144.45,6.9229]
[1746458392986,6.922,144.48,144.45,6.9229]
[1746458393387,24.88,144.52,144.43,4.1209]
[1746458393889,24.88,144.52,144.47,6.9217]
[1746458394279,6.9209,144.5,144.45,24.88]
[1746458394588,6.9209,144.5,144.47,6.9218]
[1746458394790,6.9209,144.5,144.45,24.88]
[1746458396088,6.9209,144.5,144.48,6.9216]
[1746458396281,6.9209,144.5,144.45,24.88]
[1746458397293,6.9205,144.51,144.48,6.9214]
[1746458397591,24.88,144.52,144.45,24.88]
[1746458397786,31.8002,144.52,144.45,24.88]
[1746458398287,24.88,144.52,144.45,24.88]
[1746458398487,6.9203,144.51,144.45,24.88]
[1746458398892,6.9203,144.51,144.48,6.9213]
[1746458400291,6.9203,144.51,144.49,6.9212]
[1746458400498,24.88,144.52,144.45,24.88]
[1746458401589,36.59157529,144.55,144.45,36.59157529]
[1746458402299,6.92,144.52,144.5,6.9205]
[1746458402596,36.59157529,144.55,144.5,6.9205]
[1746458402892,6.9197,144.53,144.5,6.9205]
[1746458403088,36.59157529,144.55,144.5,6.9205]
[1746458403284,6.9201,144.52,144.49,6.9209]
[1746458403594,6.9201,144.52,144.45,36.59157529]
[1746458403790,24.88,144.55,144.45,36.59157529]
[1746458404893,6.9189,144.54,144.52,6.9195]
[1746458405095,24.88,144.55,144.52,6.9195]
[1746458405294,26.858,144.58,144.49,24.88]
[1746458405597,6.918,144.56,144.53,6.919]
[1746458405992,24.88,144.58,144.53,6.919]
[1746458406399,6.9185,144.55,144.53,6.919]
[1746458406896,24.88,144.58,144.54,6.9187]
[1746458407894,24.88,144.58,144.5,5.9979]
[1746458408100,31.7969,144.58,144.5,5.9979]
[1746458408301,6.9169,144.58,144.5,5.9979]
[1746458408502,6.9169,144.58,144.55,6.9181]
[1746458409699,6.9175,144.57,144.54,6.9186]
[1746458409898,11.71157529,144.6,144.5,5.9979]
[1746458410100,36.59157529,144.57,144.5,3.9782]
[1746458410301,6.9195,144.53,144.5,10.8987]
[1746458410496,24.88,144.56,144.5,3.9782]
[1746458410802,6.9192,144.54,144.51,6.9199]
[1746458411205,24.88,144.56,144.5,3.9782]
[1746458411405,31.798,144.56,144.53,6.919]
[1746458411705,24.88,144.59,144.5,3.9782]
[1746458411903,6.9175,144.57,144.54,6.9186]
[1746458412095,24.88,144.59,144.5,3.9782]
[1746458412399,6.9183,144.56,144.5,3.9782]
[1746458412702,24.88,144.59,144.5,3.9782]
[1746458413199,6.9184,144.55,144.52,6.9194]
[1746458413405,6.9184,144.55,144.5,3.9782]
[1746458413702,24.88,144.59,144.5,3.9782]
[1746458413901,6.9181,144.56,144.53,6.9192]
[1746458414208,24.88,144.59,144.5,3.9782]
[1746458414400,6.9171,144.58,144.5,3.9782]
[1746458414600,6.9171,144.58,144.51,1.9712]
[1746458414802,6.9171,144.58,144.52,24.88]
[1746458415001,6.9175,144.57,144.52,24.88]
[1746458415408,6.9175,144.57,144.54,6.9184]
[1746458416207,6.9175,144.57,144.55,6.9182]
[1746458416404,24.88,144.59,144.52,24.88]
[1746458416610,24.88,144.62,144.52,24.88]
[1746458416806,24.88,144.62,144.56,6.9175]
[1746458417002,6.917,144.58,144.56,6.9175]
[1746458417198,24.88,144.62,144.52,24.88]
[1746458417199,24.88,144.62,144.55,6.9182]
[1746458417501,6.9171,144.58,144.52,24.88]
[1746458417809,6.9171,144.58,144.55,6.9181]
[1746458418308,6.9171,144.58,144.52,24.88]
[1746458418309,6.9175,144.57,144.52,24.88]
[1746458419108,6.9175,144.57,144.54,6.9184]
[1746458419309,6.9175,144.57,144.52,24.88]
[1746458419609,6.9175,144.57,144.55,6.9181]
[1746458420009,6.9162,144.6,144.52,24.88]
[1746458420205,24.88,144.62,144.52,24.88]
[1746458420206,24.88,144.62,144.53,11.71157529]
[1746458420912,24.88,144.62,144.59,6.9163]
[1746458421113,24.88,144.62,144.53,11.71157529]
[1746458421307,24.88,144.62,144.6,6.9158]
[1746458425319,31.7951,144.62,144.6,6.9158]
[1746458426020,24.88,144.62,144.6,6.9158]
[1746458426714,24.88,144.62,144.56,24.84]
[1746458426921,31.7951,144.62,144.56,24.84]
[1746458427317,24.88,144.62,144.59,6.916]
[1746458427620,6.9157,144.61,144.59,6.916]
[1746458427818,24.88,144.62,144.59,6.916]
[1746458428021,24.88,144.62,144.6,6.9159]
[1746458428221,31.7952,144.62,144.6,6.9159]
[1746458428423,24.88,144.62,144.6,6.9159]
[1746458429224,31.7953,144.62,144.56,24.84]
[1746458429623,31.7953,144.62,144.59,6.916]
[1746458429924,31.7953,144.62,144.56,24.84]